Cogmind - Beta 15 @@@ ROGUE MODE // 2025.10.04 @ 13:58:05 Player: shapeshifter Result: Destroyed by Meganuke Performance ------------- Evolutions (6) 3000 Regions Visited (25) 5000 Robots Destroyed (250) 1250 Value Destroyed (12412) 12412 Prototype IDs (28) 560 Alien Tech Used (1) 200 Bonus (5584) 5584 TOTAL SCORE: 28006 Bonus ------- High Alert Combat Kills 1260 Follower Combat Kills 505 Entered Garrisons 400 Entered DSFs 500 Acquired ECA 300 Met Zhirov 300 Met Warlord at Base 500 MAIN.C Attacked Warlord 500 Warlord Defense Kills 2178 Friendly Fire -859 Cogmind --------- Core Integrity 0/1150 Matter 104/300 Energy 100/100 System Corruption 13% Temperature Cool (0) Movement Core (50) Location -4/Warlord Parts ------- > --- POWER (2) -------- (None) > --- PROPULSION (5) --- (None) > --- UTILITY (8) ------ Spectral Analyzer 0b10 Decoder Chip [Looter] Experimental Targeting Computer > --- WEAPON (4) ------- (None) > --- INVENTORY (5) ---- Advanced Power Amplifier Transdimensional Reconstructor Vortex Rifle (35) Vortex Rifle (35) Vortex Rifle (35) Peak State ------------ > --- POWER ------------ Fusion Reactor Antimatter Reactor > --- PROPULSION ------- Advanced Medium Treads Armored Heavy Treads Armored Heavy Treads > --- UTILITY ---------- Improved Coolant Injector High-capacity Storage Unit Energy Well Spectral Analyzer 0b10 Decoder Chip [Looter] Experimental Targeting Computer Hardened Medium Armor Plating Advanced Remote Force Field > --- WEAPON ----------- Matter Neutralizer Matter Neutralizer Matter Neutralizer Tiamat Missile Launcher > --- INVENTORY -------- Vortex Chain Reactor Advanced Power Amplifier Advanced Cryofiber Web Makeshift Transmission Jammer System Mapper Transdimensional Reconstructor Vortex Rifle Vortex Rifle Vortex Rifle Vortex Rifle Matter Neutralizer BFG-9k Vortex Edition Meganuke [Rating: 144] Favorites ----------- Power Heavy Deuterium Engine Engine Heavy Deuterium Engine Power Core Neutrino Core Reactor Fusion Reactor Propulsion Armored Medium Treads Treads Armored Medium Treads Leg Advanced Myomer Leg Wheel Armored Huge Wheel Hover Unit Cooled Antigrav System Utility High-capacity Storage Unit Device Improved Heat Sink Storage High-capacity Storage Unit Processor Improved Signal Interpreter Hackware Advanced System Shield Protection Hardened Medium Armor Plating Weapon Gatling Laser Energy Gun Gatling Laser Energy Cannon Matter Neutralizer Ballistic Gun Light Assault Rifle Ballistic Cannon Heavy Gauss Cannon Launcher Tiamat Missile Launcher Special Weapon Improved Remote Datajack Slashing Weapon Centrium Greatsword Piercing Weapon CR-A16's Pointy Stick Build | -11 -10 -10 -10 -9 -8 -8 -8 -7 -7 -6 -6 -6 -6 -5 -5 -5 -5 -5 -5 -5 -4 -4 -4 -4 -4 ------- Run | Yrd Mat Min Exi Min Mat Gar Mat Fac DSF Fac Low Low Zio Pro Fac Gar Fac Upp Upp Zhi Pro Fac Upp Upp War Slots Evolved 12 | . . . . . 4 . . 2 . 2 . . . . 2 . . . . . . 2 . . . Power 1 | . . . . . . . . . . . . . . . 1 . . . . . . . . . . Propulsion 3 | . . . . . 1 . . 1 . . . . . . . . . . . . . 1 . . . Utility 6 | . . . . . 2 . . 1 . 2 . . . . 1 . . . . . . . . . . Weapon 2 | . . . . . 1 . . . . . . . . . . . . . . . . 1 . . . Parts Attached 207 | 6 5 8 . 4 17 34 7 . 18 18 3 . 2 2 4 18 13 . 3 2 3 17 . 6 17 Power 25 | 1 . 1 . 1 2 3 3 . 3 1 . . . . 1 3 1 . 1 . . 2 . . 2 Engine 14 | 1 . 1 . 1 2 . 2 . 2 1 . . . . 1 1 1 . 1 . . . . . . Core 7 | . . . . . . 3 1 . 1 . . . . . . 1 . . . . . 1 . . . Reactor 4 | . . . . . . . . . . . . . . . . 1 . . . . . 1 . . 2 Propulsion 57 | 2 1 4 . 2 4 10 1 . 4 5 . . . 1 1 3 8 . . 2 1 3 . 1 4 Treads 45 | . . 2 . 2 4 10 1 . . 5 . . . 1 1 3 8 . . 1 1 3 . 1 2 Leg 2 | . . . . . . . . . . . . . . . . . . . . 1 . . . . 1 Wheel 9 | 2 1 2 . . . . . . 4 . . . . . . . . . . . . . . . . Hover 1 | . . . . . . . . . . . . . . . . . . . . . . . . . 1 Flight . | . . . . . . . . . . . . . . . . . . . . . . . . . . Utility 79 | 1 4 2 . 1 3 10 3 . 9 9 3 . 1 1 2 7 4 . 2 . 1 8 . . 8 Device 40 | . . . . 1 1 7 2 . 2 4 2 . . 1 1 6 2 . 2 . 1 3 . . 5 Storage 6 | 1 3 1 . . . . . . . . . . . . . . . . . . . . . . 1 Processor 8 | . 1 . . . 1 . . . 1 1 1 . . . . . 1 . . . . . . . 2 Hackware 5 | . . . . . . . . . 1 2 . . . . . . . . . . . 2 . . . Protection 20 | . . 1 . . 1 3 1 . 5 2 . . 1 . 1 1 1 . . . . 3 . . . Artifact . | . . . . . . . . . . . . . . . . . . . . . . . . . . Weapon 46 | 2 . 1 . . 8 11 . . 2 3 . . 1 . . 5 . . . . 1 4 . 5 3 Energy Gun 25 | 1 . . . . 7 10 . . 1 1 . . . . . 3 . . . . . . . . 2 Energy Cannon 11 | . . . . . . . . . 1 2 . . . . . 1 . . . . 1 1 . 4 1 Ballistic Gun 3 | 1 . 1 . . 1 . . . . . . . . . . . . . . . . . . . . Ballistic Cannon 1 | . . . . . . . . . . . . . . . . . . . . . . 1 . . . Launcher 2 | . . . . . . 1 . . . . . . . . . . . . . . . . . 1 . Special Weapon 2 | . . . . . . . . . . . . . . . . 1 . . . . . 1 . . . Impact Weapon . | . . . . . . . . . . . . . . . . . . . . . . . . . . Slashing Weapon 1 | . . . . . . . . . . . . . . . . . . . . . . 1 . . . Piercing Weapon 1 | . . . . . . . . . . . . . 1 . . . . . . . . . . . . Special Melee Weapon . | . . . . . . . . . . . . . . . . . . . . . . . . . . Unidentified Prototypes 18 | . . . . . 5 . . . 1 2 . . . . . . . . . 2 . 1 . . 7 Parts Lost 56 | . . 3 . . . 10 . . 7 . 1 . . . . 4 . . 3 . 7 6 . . 15 Power 12 | . . 1 . . . 3 . . 2 . . . . . . 1 . . . . 2 . . . 3 Propulsion 11 | . . 1 . . . 3 . . 2 . . . . . . . . . . . . 2 . . 3 Utility 20 | . . . . . . 2 . . 3 . 1 . . . . 1 . . 2 . 4 2 . . 5 Weapon 13 | . . 1 . . . 2 . . . . . . . . . 2 . . 1 . 1 2 . . 4 Highest Loss Streak 15 | . . 2 . . . 2 . . 6 . 1 . . . . 1 . . 1 . 3 4 . . 15 To Critical Strikes 2 | . . . . . . . . . . . . . . . . . . . . . 1 1 . . . Average Backups 17 | 3 11 15 13 14 17 19 19 20 17 18 18 19 19 20 18 19 19 17 15 16 14 13 19 19 16 Power 1 | . 1 . 2 3 2 . . 1 . 1 1 1 1 1 . 1 2 2 1 1 1 . 1 1 1 Propulsion 1 | 1 3 4 3 3 2 1 1 1 1 1 . . . . . . 2 3 3 2 1 1 4 4 2 Utility 7 | . 4 6 5 4 6 8 10 11 8 7 6 7 7 8 7 7 6 5 4 5 6 4 8 8 6 Weapon 6 | . 2 3 3 2 4 7 6 6 5 7 9 8 8 9 9 6 6 6 5 5 3 4 3 4 5 Tool/Special . | . . . . . . . . . . . . . . . . . . . . . . . . . . Unused Backups 78 | . 3 3 . 2 14 12 7 . 7 5 . 2 1 . . 2 2 . . . . . . 1 17 Power 5 | . . . . . 3 . . . . . . 1 . . . 1 . . . . . . . . . Propulsion 10 | . . . . . . . . . 3 1 . . . . . . 2 . . . . . . . 4 Utility 39 | . 2 2 . 1 6 7 7 . 2 3 . . 1 . . 1 . . . . . . . 1 6 Weapon 22 | . 1 1 . 1 5 4 . . 2 1 . 1 . . . . . . . . . . . . 6 Tool/Special 2 | . . . . . . 1 . . . . . . . . . . . . . . . . . . 1 Average Slot Usage (%) 93 | . 91 99 100 100 96 98 100 84 77 86 93 93 93 93 93 93 96 100 98 97 80 62 94 93 92 Engine 5 | . 14 14 14 14 9 1 3 7 5 4 6 6 6 6 10 5 5 5 8 11 7 . . . . Core 2 | . . . . . . 6 5 . . 1 . . . . . 4 5 5 1 . . 1 5 5 3 Treads 21 | . . 25 . 27 27 26 27 23 4 12 26 26 26 26 23 23 22 23 23 20 14 9 21 21 20 Wheel 1 | . 28 2 28 . . . . . 8 6 . . . . . . . . . . . . . . . Device 16 | . . . . 10 15 17 18 15 10 17 20 20 20 20 17 22 22 23 22 23 18 10 15 15 14 Storage 7 | . 14 14 14 14 9 9 9 7 7 6 6 6 6 6 5 5 5 5 5 5 5 5 5 5 8 Processor 5 | . 5 2 . . 8 . . . . 3 5 6 6 6 5 5 8 11 11 11 11 5 5 5 8 Protection 6 | . . 11 14 3 . 8 9 7 14 8 6 6 6 6 10 5 5 5 5 5 2 5 10 10 7 Energy Gun 14 | . 14 . . . 23 26 27 23 22 19 20 20 19 20 17 16 16 17 12 11 1 . . . . Energy Cannon 3 | . . . . . . . . . . . . . . . . . . . 3 5 15 7 10 18 19 Ballistic Gun 2 | . 14 27 28 28 2 . . . . . . . . . . . . . . . . . . . . Peak Build Rating 144 | 6 8 8 9 11 32 40 42 40 57 68 67 68 68 73 85 92 100 100 100 98 96 111 111 114 144 Average Rating 67 | 4 7 7 8 10 28 34 40 40 47 64 65 67 67 71 83 90 95 99 95 94 87 80 110 112 118 On Entrance 59 | . 6 8 8 9 11 31 40 40 40 53 64 66 68 68 73 84 91 99 100 94 96 71 111 110 114 Naked Turns . | . . . . . . . . . . . . . . . . . . . . . . . . . . Heaviest Build 140 | 13 48 47 46 31 59 65 66 62 85 89 85 83 83 83 94 117 113 102 99 99 106 111 111 118 140 Greatest Support 160 | 26 26 40 20 40 63 63 62 62 62 100 100 100 100 107 114 117 140 108 108 124 140 146 146 146 160 Greatest Overweight (x) 25 | . 2 2 2 . 1 3 1 . 25 1 . . . . . . 1 . . 1 . . . . 1 Average Overweight (x) . | . . . 1 . . . . . 1 . . . . . . . . . . . . . . . . Largest Inventory Capacity 20 | 8 20 20 20 20 20 20 20 20 20 20 20 20 20 20 20 20 20 20 20 20 20 20 20 20 20 Average Capacity 19 | 7 12 16 19 15 19 20 20 20 20 20 20 20 20 20 20 20 20 20 20 20 20 20 20 20 20 Most Carried 20 | 7 19 20 17 17 20 20 20 20 20 20 20 20 20 20 20 20 20 20 20 20 20 20 20 20 20 Average Carried 18 | 3 11 15 16 14 17 19 19 20 18 19 19 19 19 20 18 19 19 20 18 18 16 14 19 19 19 Final Capacity 20 | 8 20 15 20 15 20 20 20 20 20 20 20 20 20 20 20 20 20 20 20 20 20 20 20 20 20 Final Carried 20 | 5 19 14 17 15 19 20 20 20 19 20 20 20 20 20 20 19 20 20 18 20 14 20 19 20 20 Class Distribution -------------------- 39% | Tank 16% | Scavenger-Tank 14% | Mutant 13% | Skirmisher 10% | Gunner 4% | Scavenger-Gunner Dominant Class ---------------- Mutant | -10/Materials Mutant | -10/Mines Mutant | -10/Exiles Mutant | -9/Mines Gunner | -8/Materials Scavenger-Tank | -8/Garrison Gunner | -8/Materials Gunner | -7/Factory Tank | -7/DSF Tank | -6/Factory Tank | -6/Lower Caves Skirmisher | -6/Lower Caves Skirmisher | -6/Zion Skirmisher | -5/Proximity Caves Tank | -5/Factory Scavenger-Tank | -5/Garrison Tank | -5/Factory Tank | -5/Upper Caves Tank | -5/Upper Caves Tank | -5/Zhirov Tank | -4/Proximity Caves Mutant | -4/Factory Tank | -4/Upper Caves Tank | -4/Upper Caves Tank | -4/Warlord Resources | -11 -10 -10 -10 -9 -8 -8 -8 -7 -7 -6 -6 -6 -6 -5 -5 -5 -5 -5 -5 -5 -4 -4 -4 -4 -4 ----------- Run | Yrd Mat Min Exi Min Mat Gar Mat Fac DSF Fac Low Low Zio Pro Fac Gar Fac Upp Upp Zhi Pro Fac Upp Upp War Matter Collected 3790 | 277 71 193 100 62 210 630 112 . 195 186 94 10 30 20 70 255 289 31 40 . 80 146 87 102 500 Remotely . | . . . . . . . . . . . . . . . . . . . . . . . . . . Salvage Created 11461 | 144 218 193 . . 1124 1723 311 . 683 749 234 55 . 139 386 1093 559 189 626 . 799 512 218 439 1067 Parts 464 | 10 17 19 . . 44 81 13 . 27 19 10 3 . 3 5 50 29 10 20 . 23 33 15 6 27 Haulers Intercepted 6 | . 2 . . . 2 . . . . 2 . . . . . . . . . . . . . . . Recyclers Shooed 2 | . . . . . . . . . . 2 . . . . . . . . . . . . . . . Parts Field Recycled . | . . . . . . . . . . . . . . . . . . . . . . . . . . Retrieved Matter . | . . . . . . . . . . . . . . . . . . . . . . . . . . Parts Self-Destructed 80 | . . . . . . . . . . . 11 1 3 2 . . . 14 8 . 23 . 15 3 . Prevented 13 | . . . . . . . . . . . . . . . . . . 1 9 . 3 . . . . Kills | -11 -10 -10 -10 -9 -8 -8 -8 -7 -7 -6 -6 -6 -6 -5 -5 -5 -5 -5 -5 -5 -4 -4 -4 -4 -4 ------- Run | Yrd Mat Min Exi Min Mat Gar Mat Fac DSF Fac Low Low Zio Pro Fac Gar Fac Upp Upp Zhi Pro Fac Upp Upp War Combat Hostiles Destroyed 213 | . 4 8 . . 19 37 7 . 14 3 8 1 . 2 7 18 7 5 10 . 16 12 9 8 18 Guns 117 | . 4 8 . . 18 30 7 . 14 2 5 1 . 2 2 10 3 4 5 . 2 . . . . Cannons 45 | . . . . . . . . . . . . . . . . 1 2 . 1 . 13 12 9 2 5 AOE 21 | . . . . . . 2 . . . . . . . . . . 1 . . . . . . 6 12 Classes Destroyed 20 | 2 3 2 . . 2 3 . . 2 3 . . . . . . . 1 . . 1 . . . 1 Worker 2 | . . . . . . . . . . 2 . . . . . . . . . . . . . . . Builder 2 | . . 1 . . 1 . . . . . . . . . . . . . . . . . . . . Tunneler 5 | 4 . . . . . . . . . 1 . . . . . . . . . . . . . . . Hauler 6 | . 2 . . . 2 . . . . 2 . . . . . . . . . . . . . . . Recycler 7 | 1 . . . . 1 . . . . 4 . . . . . . 1 . . . . . . . . Operator 3 | . . . . . . . . . . 1 . . . . 1 . 1 . . . . . . . . Drone 2 | . . . . . . . . . . . . . . . . . . . . . 2 . . . . Watcher 8 | . 3 . . . 1 . . . . . . . . . . . 2 . . . . 2 . . . Swarmer 66 | . 4 6 . . 3 4 2 . 3 . 5 . . . . 5 2 4 . . 5 8 9 . 6 Grunt 67 | . . 2 . . 12 18 2 . 4 . 2 . . 1 3 1 2 . 3 . 6 . . 6 5 Brawler 7 | . . . . . . 3 . . 1 . . . . . 1 . . . . . 1 . . . 1 Duelist 9 | . . . . . 1 1 . . 1 . 1 . . . 1 1 1 . . . 1 . . 1 . Protector 1 | . . . . . . . . . . . . . . . . . . . . . . . . . 1 Sentry 27 | . . . . . 3 6 3 . . . . 1 . 1 2 7 . . 1 . 1 1 . 1 . Specialist 4 | . . . . . . . . . 4 . . . . . . . . . . . . . . . . Hunter 7 | . . . . . . . . . . 1 . . . . . 2 . . . . . . . . 4 Programmer 11 | . . . . . . 3 . . . 2 . . . . . . 2 . 1 . . 3 . . . Heavy 1 | . . . . . . . . . 1 . . . . . . . . . . . . . . . . Behemoth 7 | . . . . . . 2 . . . . . . . . . 2 . . . . . . . . 3 Thug 4 | . . . . . . . . . . . . . . . . . . . 4 . . . . . . Savage 1 | . . . . . . . . . . . . . . . . . . . . . . . . 1 . Mutant 2 | . . . . . . . . . . . . . . . . . . 1 1 . . . . . . Best Kill Streak 14 | 4 5 3 . . 3 4 3 . 6 3 3 1 . 1 4 5 3 2 4 . 5 4 5 7 14 Combat Bots Only 14 | . 3 3 . . 2 4 3 . 6 1 3 1 . 1 4 5 3 2 4 . 5 4 5 7 14 Max Kills in Single Turn 4 | 1 1 1 . . 2 2 2 . 2 2 1 1 . 1 1 3 1 2 1 . 2 1 1 3 4 Gunslinging 2 | . . . . . . 1 1 . 1 . . . . . . 2 . 1 . . 1 . . . . Exploded 4 | . . . . . . 2 . . . . . . . . . . 1 . . . . . . 3 4 Melee . | . . . . . . . . . . . . . . . . . . . . . . . . . . Uniques/NPCs Destroyed 1 | . . . . . . . . . . . . . . . . . . . . . . . . . 1 Warlord (-4/Warlord) Combat | -11 -10 -10 -10 -9 -8 -8 -8 -7 -7 -6 -6 -6 -6 -5 -5 -5 -5 -5 -5 -5 -4 -4 -4 -4 -4 -------- Run | Yrd Mat Min Exi Min Mat Gar Mat Fac DSF Fac Low Low Zio Pro Fac Gar Fac Upp Upp Zhi Pro Fac Upp Upp War Hostile Shots Fired 1372 | . 17 75 . . 82 185 20 . 136 15 40 9 . 4 27 89 25 14 58 . 159 66 81 24 246 Missed 399 | . 5 14 . . 30 45 7 . 33 4 11 5 . 2 9 19 10 5 23 . 39 20 19 8 91 Hits 973 | . 12 61 . . 52 140 13 . 103 11 29 4 . 2 18 70 15 9 35 . 120 46 62 16 155 Melee 13 | . . . . . . . . . 2 . . . . . 1 . 2 . . . 7 . . . 1 Projectile 960 | . 12 61 . . 52 140 13 . 101 11 29 4 . 2 17 70 13 9 35 . 113 46 62 16 154 AOE 18 | . . . . . . . . . . . . . . . . . 1 . . . . . . . 17 Critical Strikes 39 | . . 1 . . 4 5 1 . 7 . 1 . . . . 1 1 . 2 . 5 3 . . 8 Part Disruptions 2 | . 1 . . . . . . . . . . . . . . . . . . . . . . . 1 Damage Taken 18574 | . 137 573 . . 543 2580 171 . 2009 183 429 33 . 44 422 1393 279 85 709 . 2172 729 925 255 4903 Core 2611 | . 26 132 . . 25 246 26 . 199 15 51 . . . . 49 . . 80 . 241 82 17 34 1388 Absorbed by Shields 889 | . . . . . 205 32 . . . . 56 . . . . . 73 32 23 . . . . . 468 Reduced by Siege Mode 37 | . . . . . . . . . . . . . . . . . . . . . 37 . . . . Redirected to Shielding 122 | . . 10 . . . . . . . . . . . . . 11 . . . . . 101 . . . Ignored by Resistances 630 | . . . . . . . . . 52 . . . . . . 76 20 28 35 . 193 139 . 87 . Regen/Repaired (Parts) 197 | . . . . . . . . . . . . . . . . . . . . . . . . . 197 Core Remaining (%) 68 | 100 . . . 36 . . 46 . 71 . . . . 92 . . . . . . 63 . . . . Volleys Fired 646 | 17 26 41 . . 63 103 18 . 37 24 13 1 . 3 19 61 20 11 30 . 45 43 18 9 44 Largest 4 | 2 2 2 . . 3 3 3 . 3 3 3 3 . 3 3 3 3 3 3 . 3 2 2 4 4 Hottest 420 | 70 70 70 . . 183 240 165 . 240 240 240 240 . 240 240 240 180 180 180 . 120 133 133 420 420 Shots Fired 1540 | 34 52 79 . . 157 283 48 . 99 60 39 3 . 9 57 165 50 33 69 . 103 58 36 21 85 Gun 1236 | 34 52 79 . . 157 280 48 . 99 54 39 3 . 9 57 157 45 33 68 . 13 . . . 9 Cannon 279 | . . . . . . . . . . 6 . . . . . 8 5 . 1 . 90 56 36 18 59 Launcher 23 | . . . . . . 3 . . . . . . . . . . . . . . . . . 3 17 Special 2 | . . . . . . . . . . . . . . . . . . . . . . 2 . . . Kinetic 118 | 17 26 75 . . . . . . . . . . . . . . . . . . . . . . . Thermal 1074 | 17 26 4 . . 141 280 48 . 99 60 39 3 . 9 57 26 5 . 1 . 90 56 36 18 59 Explosive 23 | . . . . . . 3 . . . . . . . . . . . . . . . . . 3 17 Electromagnetic 314 | . . . . . 16 . . . . . . . . . . 139 45 33 68 . 13 . . . . Entropic 9 | . . . . . . . . . . . . . . . . . . . . . . . . . 9 Robot Hit Streak 25 | 4 8 5 . . 21 17 9 . 7 23 7 5 . 12 9 13 9 7 9 . 20 25 6 12 16 Robot Miss Streak 8 | 2 5 3 . . 4 7 3 . 8 6 7 2 . 3 6 3 2 5 5 . 4 3 5 2 2 Penetration Max . | . . . . . . . . . . . . . . . . . . . . . . . . . . Secondary Targets 28 | . 1 2 . . 4 5 1 . 4 . 1 . . . 1 3 1 2 2 . 1 . . . . Max Gunslinging Chain 2 | . 1 1 . . 1 1 1 . 1 . 1 . . . 1 2 1 2 1 . 1 . . . . Shots Hit Robots 939 | 20 27 52 . . 109 164 25 . 75 41 33 3 . 8 43 78 32 17 43 . 57 23 13 17 59 Core Hits 496 | 8 13 20 . . 43 69 10 . 37 38 18 4 . 8 25 38 18 6 17 . 24 15 9 20 56 Critical Kills 5 | . . . . . . . . . . . . . . . . . . . . . 1 1 . 1 2 Critical Parts Destroyed 1 | . . . . . . . . . . . . . . . . . . . . . . . . . 1 Critical Strikes 40 | . 1 . . . 14 10 3 . 1 . . . . . . 3 1 . 1 . 1 1 . 1 3 Burn 29 | . 1 . . . 14 10 3 . 1 . . . . . . . . . . . . . . . . Meltdown 5 | . . . . . . . . . . . . . . . . . . . . . 1 1 . 1 2 Corrupt 5 | . . . . . . . . . . . . . . . . 3 1 . 1 . . . . . . Detonate 1 | . . . . . . . . . . . . . . . . . . . . . . . . . 1 Melee Attacks 1 | . . . . . . . . . . . . . 1 . . . . . . . . . . . . Impact . | . . . . . . . . . . . . . . . . . . . . . . . . . . Slashing . | . . . . . . . . . . . . . . . . . . . . . . . . . . Piercing 1 | . . . . . . . . . . . . . 1 . . . . . . . . . . . . Sneak Attacks . | . . . . . . . . . . . . . . . . . . . . . . . . . . Combat Hostiles . | . . . . . . . . . . . . . . . . . . . . . . . . . . Follow-up Attacks . | . . . . . . . . . . . . . . . . . . . . . . . . . . Damage Inflicted 27482 | 217 302 418 . . 2254 3774 569 . 1499 1359 774 75 . 177 1083 2143 1217 421 1174 . 1964 778 535 1458 5291 Guns 16767 | 217 302 418 . . 2254 3699 569 . 1499 1056 774 75 . 177 1083 1741 797 421 1099 . 177 . . . 409 Cannons 5863 | . . . . . . . . . . . . . . . . 402 191 . 75 . 1766 705 535 492 1697 Explosions 4826 | . . . . . . 75 . . . 303 . . . . . . 229 . . . . 68 . 966 3185 Melee . | . . . . . . . . . . . . . . . . . . . . . . . . . . Ramming 26 | . . . . . . . . . . . . . . . . . . . . . 21 5 . . . Kinetic 612 | 80 126 406 . . . . . . . . . . . . . . . . . . . . . . . Thermal 18526 | 137 176 12 . . 1920 3699 569 . 1499 1359 774 75 . 177 1083 858 420 . 75 . 1766 773 535 492 2127 Explosive 3796 | . . . . . . 75 . . . . . . . . . . . . . . . . . 966 2755 Electromagnetic 4113 | . . . . . 334 . . . . . . . . . . 1285 797 421 1099 . 177 . . . . Impact . | . . . . . . . . . . . . . . . . . . . . . . . . . . Slashing . | . . . . . . . . . . . . . . . . . . . . . . . . . . Piercing . | . . . . . . . . . . . . . . . . . . . . . . . . . . Entropic 409 | . . . . . . . . . . . . . . . . . . . . . . . . . 409 Highest Corruption 13 | . . . . . . 8 8 . . . . . . . . . 1 . . . . 3 3 3 13 Average Corruption 5 | . . . . . . 7 8 . . . . . . . . . 1 . . . . 2 3 3 4 Corruption Purged 1 | . . . . . . . . . . . . . . . . . 1 . . . . . . . . Corruption Blocked . | . . . . . . . . . . . . . . . . . . . . . . . . . . Effects 131 | . . . . . . 71 22 . . . . . . . . . 1 . . . . 13 10 12 2 Message Errors 34 | . . . . . . 18 8 . . . . . . . . . . . . . . 3 2 1 2 Matter Fused 35 | . . . . . . 19 3 . . . . . . . . . . . . . . 3 4 6 . Heat Flow Errors 9 | . . . . . . 4 2 . . . . . . . . . . . . . . 2 1 . . Energy Discharges 21 | . . . . . . 14 4 . . . . . . . . . . . . . . 1 1 1 . Parts Fused 2 | . . . . . . . . . . . . . . . . . . . . . . 1 1 . . Data Loss (minor) 13 | . . . . . . 8 2 . . . . . . . . . 1 . . . . 2 . . . Data Loss (major) 5 | . . . . . . 1 1 . . . . . . . . . . . . . . 1 1 1 . Misfires 7 | . . . . . . 4 2 . . . . . . . . . . . . . . . . 1 . Alerts 1 | . . . . . . . . . . . . . . . . . . . . . . . . 1 . Weapon Failures 4 | . . . . . . 3 . . . . . . . . . . . . . . . . . 1 . Overload Shots 13 | . . . . . . . . . . . . . . . . 4 3 . 1 . . 4 . . 1 Effects 2 | . . . . . . . . . . . . . . . . 1 . . . . . 1 . . . Heat Surge 1 | . . . . . . . . . . . . . . . . 1 . . . . . . . . . Short Circuit 1 | . . . . . . . . . . . . . . . . . . . . . . 1 . . . Overflow Damage 374 | . . . . . . . . . . 34 . . . . . . . . 32 . 79 70 25 27 107 Projectiles 181 | . . . . . . . . . . . . . . . . . . . 32 . 79 18 25 27 . Explosions 193 | . . . . . . . . . . 34 . . . . . . . . . . . 52 . . 107 Melee . | . . . . . . . . . . . . . . . . . . . . . . . . . . Knockbacks . | . . . . . . . . . . . . . . . . . . . . . . . . . . Impact . | . . . . . . . . . . . . . . . . . . . . . . . . . . Kinetic . | . . . . . . . . . . . . . . . . . . . . . . . . . . Secondary . | . . . . . . . . . . . . . . . . . . . . . . . . . . Self-Inflicted Damage 227 | . . . . . . 85 . . . . . . . . . . . . . . . 142 . . . Shots 4 | . . . . . . 2 . . . . . . . . . . . . . . . 2 . . . Rammed 5 | . . . . . . . . . . . . . . . . . . . . . 3 2 . . . Targets Rammed 5 | . . . . . . . . . . . . . . . . . . . . . 3 2 . . . Kicked . | . . . . . . . . . . . . . . . . . . . . . . . . . . Crushed . | . . . . . . . . . . . . . . . . . . . . . . . . . . Highest Temperature 492 | 80 160 60 . . 351 414 276 . 248 190 360 129 . 230 435 422 492 60 126 . 6 308 330 280 391 Average Temperature 94 | 37 50 20 . . 104 83 74 . 71 63 168 74 . 106 139 75 131 30 35 . 6 90 109 88 136 Received Heat Transfer 3466 | . . 111 . . 285 832 72 . 630 . 99 12 . 9 126 440 . 6 256 . 413 9 . 60 106 Effects 17 | . . . . . 1 5 . . 1 . . . . . 2 . 3 . . . . . 3 . 2 Shutdowns 6 | . . . . . . 1 . . . . . . . . 1 . 2 . . . . . . . 2 Energy Bleed 3 | . . . . . . 2 . . . . . . . . 1 . . . . . . . . . . Interference 5 | . . . . . . . . . 1 . . . . . . . 1 . . . . . 3 . . Matter Decay 1 | . . . . . . 1 . . . . . . . . . . . . . . . . . . . Short Circuit 2 | . . . . . 1 1 . . . . . . . . . . . . . . . . . . . Siege Activations 2 | . . . . . . . . . . . . . . . . . . . . . 2 . . . . Total Turns 38 | . . . . . . . . . . . . . . . . . . . . . 38 . . . . Longest Duration 28 | . . . . . . . . . . . . . . . . . . . . . 28 . . . . Martial Activations . | . . . . . . . . . . . . . . . . . . . . . . . . . . Shielding Activations . | . . . . . . . . . . . . . . . . . . . . . . . . . . Robots Disrupted . | . . . . . . . . . . . . . . . . . . . . . . . . . . Combat Hostiles . | . . . . . . . . . . . . . . . . . . . . . . . . . . Robots Corrupted 14 | . . . . . 1 . . . . . . . . . . 7 1 1 4 . . . . . . Combat Hostiles 14 | . . . . . 1 . . . . . . . . . . 7 1 1 4 . . . . . . Parts Fried 31 | . . . . . 2 . . . . . . . . . . 12 5 3 8 . 1 . . . . Impact Corruptions . | . . . . . . . . . . . . . . . . . . . . . . . . . . Robots Melted 20 | . . . . . . 5 . . . 2 3 . . . 5 . . . . . 1 1 . 1 2 Combat Hostiles 16 | . . . . . . 5 . . . 1 3 . . . 5 . . . . . 1 . . . 1 Parts Melted 86 | 1 1 . . . 7 28 1 . 5 4 3 . . . 12 . . . . . 9 6 1 3 5 Heat Transferred 33579 | 407 592 37 . . 4588 7594 1221 . 3088 2575 1625 150 . 375 2275 1345 460 . 80 . 2750 1100 800 570 1947 Parts Sabotaged 1 | . . . . . . . . . . . . . . . . . . . . . 1 . . . . Parts Stolen . | . . . . . . . . . . . . . . . . . . . . . . . . . . Parts Stripped . | . . . . . . . . . . . . . . . . . . . . . . . . . . Power Chain Reactions 3 | . . . . . 1 . . . . . . . . . . . 2 . . . . . . . . Alert | -11 -10 -10 -10 -9 -8 -8 -8 -7 -7 -6 -6 -6 -6 -5 -5 -5 -5 -5 -5 -5 -4 -4 -4 -4 -4 ------- Run | Yrd Mat Min Exi Min Mat Gar Mat Fac DSF Fac Low Low Zio Pro Fac Gar Fac Upp Upp Zhi Pro Fac Upp Upp War Maximum Alert Level 5 | . . . . . . 5 3 1 2 2 . . . . . 4 2 . . . . 2 . . . Low Security (%) 28 | 100 100 100 . 100 100 3 . . . . . . . . 100 5 . . . . . . . . . Level 1 17 | . . . . . . 8 . 100 72 72 . . . . . 20 . . . . . 26 . . . Level 2 22 | . . . . . . 15 . . 27 27 . . . . . 12 100 . . . . 73 . . . Level 3 17 | . . . . . . 18 100 . . . . . . . . 47 . . . . . . . . . Level 4 9 | . . . . . . 34 . . . . . . . . . 13 . . . . . . . . . Level 5 4 | . . . . . . 20 . . . . . . . . . . . . . . . . . . . High Security . | . . . . . . . . . . . . . . . . . . . . . . . . . . Max Security . | . . . . . . . . . . . . . . . . . . . . . . . . . . Sterilizations 1 | . . . . . . . . . 1 . . . . . . . . . . . . . . . . Peak Influence 1902 | 10 74 64 . . 137 1902 962 394 557 524 . . . . 115 1201 630 . . . . 681 . . . Initial 926 | . . . . . . 85 926 394 237 291 . . . . . 76 630 . . . . 464 . . . Average 529 | 2 16 12 . . 38 1043 900 366 341 357 . . . . 45 754 528 . . . . 468 . . . Influence Increases 8342 | 25 135 225 . . 525 1937 255 5 390 396 190 20 . 40 199 1185 354 311 123 . 325 982 200 160 360 Destroy 0b10 Robot/C 4460 | . 80 160 . . 380 760 140 . 280 60 160 20 . 40 140 540 220 180 100 . 280 240 180 160 340 Destroy 0b10 Robot/NC 180 | 25 25 5 . . 25 . . . . 50 . . . . 5 . 20 . . . 10 10 . . 5 Destroy Leader 588 | . 20 30 . . 76 40 50 . 50 34 30 . . . 40 50 34 20 20 . 20 54 20 . . Allied During Kill 181 | . . . . . . 11 1 . . . . . . . . 78 37 51 3 . . . . . . Trap Triggered on 0b10 10 | . . . . . . . . . . 10 . . . . . . . . . . . . . . . Successful Hack 136 | . 10 . . . 8 30 28 5 . 20 . . . . 14 . 8 . . . . 13 . . . Disable Machine 420 | . . . . . 15 75 15 . . 180 . . . . . 15 15 . . . . 105 . . . Anti-Garrison Action 1300 | . . . . . . 900 . . . . . . . . . 400 . . . . . . . . . Destroy Structure 347 | . . . . . 6 76 6 . . 42 . . . . . 87 20 . . . . 110 . . . Advance Influence 450 | . . . . . . . . . . . . . . . . . . . . . . 450 . . . Lose Combat Pursuer 270 | . . 30 . . 15 45 15 . 60 . . . . . . 15 . 60 . . 15 . . . 15 Influence Decreases 8172 | 25 135 225 . . 393 167 1290 533 172 706 325 120 12 40 90 93 1059 564 366 . 301 606 386 280 284 Entered New Map 3120 | . . . . . . 47 976 473 102 266 93 22 12 . . 33 571 184 47 . . 10 148 42 94 Time Decay 4242 | 25 135 205 . . 393 . 294 60 . 440 222 98 . 40 90 . 428 380 279 . 251 386 238 238 40 Search Patrol Dispatched 150 | . . . . . . . . . . . . . . . . . . . . . . 150 . . . Lost Part 520 | . . 20 . . . 100 . . 70 . 10 . . . . 40 . . 20 . 50 60 . . 150 Lost Ally 140 | . . . . . . 20 20 . . . . . . . . 20 60 . 20 . . . . . . Squads Dispatched 22 | . 1 . . . 3 . . . 2 5 . . . . 3 . 3 . . . 1 3 . 1 . Investigation 1 | . . . . . 1 . . . . . . . . . . . . . . . . . . . . Extermination 5 | . . . . . . . . . . 3 . . . . . . 1 . . . . 1 . . . Reinforcement 10 | . 1 . . . . . . . 2 2 . . . . 1 . 2 . . . . 2 . . . Assault 2 | . . . . . . . . . . . . . . . . . . . . . 1 . . 1 . Garrison 4 | . . . . . 2 . . . . . . . . . 2 . . . . . . . . . . Intercept . | . . . . . . . . . . . . . . . . . . . . . . . . . . Searches Triggered 1 | . . . . . . . . . . . . . . . . . . . . . . 1 . . . Construction Impeded . | . . . . . . . . . . . . . . . . . . . . . . . . . . Haulers Reinforced 1 | . . . . . . . . . . 1 . . . . . . . . . . . . . . . Active Scanning Responses . | . . . . . . . . . . . . . . . . . . . . . . . . . . Cargo Convoy Interrupts 1 | . . . . . . . . . . 1 . . . . . . . . . . . . . . . Stealth | -11 -10 -10 -10 -9 -8 -8 -8 -7 -7 -6 -6 -6 -6 -5 -5 -5 -5 -5 -5 -5 -4 -4 -4 -4 -4 --------- Run | Yrd Mat Min Exi Min Mat Gar Mat Fac DSF Fac Low Low Zio Pro Fac Gar Fac Upp Upp Zhi Pro Fac Upp Upp War Distress Signals 6 | . 1 . . . . . . . . . . . . . . . . . . . . 1 . . 4 Communications Jammed . | . . . . . . . . . . . . . . . . . . . . . . . . . . Distress Signals . | . . . . . . . . . . . . . . . . . . . . . . . . . . Times Spotted 320 | . 13 10 . . 30 38 9 . 21 7 9 1 . 1 7 20 13 12 13 . 26 19 9 7 55 Peak Tracking Total 13 | . 4 3 . . 4 4 3 . 6 2 3 1 . 1 3 5 2 4 5 . 13 9 5 7 13 Tactical Retreats 14 | . . 2 . . 1 2 1 . 3 . . . . . . 1 . 2 . . 1 . . . 1 Traps | -11 -10 -10 -10 -9 -8 -8 -8 -7 -7 -6 -6 -6 -6 -5 -5 -5 -5 -5 -5 -5 -4 -4 -4 -4 -4 ------- Run | Yrd Mat Min Exi Min Mat Gar Mat Fac DSF Fac Low Low Zio Pro Fac Gar Fac Upp Upp Zhi Pro Fac Upp Upp War Traps Triggered 8 | . 1 . . . 2 3 . . . . . . . . . . 1 . . . . 1 . . . Indirectly . | . . . . . . . . . . . . . . . . . . . . . . . . . . Trap Hack Attempts . | . . . . . . . . . . . . . . . . . . . . . . . . . . Triggered . | . . . . . . . . . . . . . . . . . . . . . . . . . . Disarmed 6 | . . . . . . . 6 . . . . . . . . . . . . . . . . . . Reprogrammed 1 | . . . . . . . . . . 1 . . . . . . . . . . . . . . . Reused 1 | . . . . . . . . . . 1 . . . . . . . . . . . . . . . Traps Extracted . | . . . . . . . . . . . . . . . . . . . . . . . . . . Installed . | . . . . . . . . . . . . . . . . . . . . . . . . . . Triggered 1 | . . . . . . . . . . 1 . . . . . . . . . . . . . . . Most Traps Carried 3 | . . 3 3 3 . . . . . . . . . . . . . . . . . . . . . Machines | -11 -10 -10 -10 -9 -8 -8 -8 -7 -7 -6 -6 -6 -6 -5 -5 -5 -5 -5 -5 -5 -4 -4 -4 -4 -4 ---------- Run | Yrd Mat Min Exi Min Mat Gar Mat Fac DSF Fac Low Low Zio Pro Fac Gar Fac Upp Upp Zhi Pro Fac Upp Upp War Machines Disabled 42 | . . . . . 1 12 1 . . 12 . . . . . 5 1 1 . . . 7 . 1 1 Max in Single Turn 11 | . . . . . 1 2 1 . . 11 . . . . . 1 1 1 . . . 7 . 1 1 Garrison Relay 9 | . . . . . . 5 . . . . . . . . . 4 . . . . . . . . . Phase Generator 1 | . . . . . . 1 . . . . . . . . . . . . . . . . . . . Machines Repaired . | . . . . . . . . . . . . . . . . . . . . . . . . . . Machines Dismantled 1 | . . . . . . . . . . . . . . . . 1 . . . . . . . . . Machines Sabotaged . | . . . . . . . . . . . . . . . . . . . . . . . . . . Overloaded Fab Kills . | . . . . . . . . . . . . . . . . . . . . . . . . . . Hacking | -11 -10 -10 -10 -9 -8 -8 -8 -7 -7 -6 -6 -6 -6 -5 -5 -5 -5 -5 -5 -5 -4 -4 -4 -4 -4 --------- Run | Yrd Mat Min Exi Min Mat Gar Mat Fac DSF Fac Low Low Zio Pro Fac Gar Fac Upp Upp Zhi Pro Fac Upp Upp War Machines Accessed 41 | . 4 . 4 . 6 3 4 2 . 5 . . . . 1 1 1 . 1 4 . 3 . 1 1 Terminals 23 | . 3 . . . 5 3 4 1 . 3 . . . . . 1 1 . 1 . . 1 . . . Fabricators 4 | . . . . . . . . 1 . 1 . . . . . . . . . . . 2 . . . Repair Stations . | . . . . . . . . . . . . . . . . . . . . . . . . . . Recycling Units 1 | . 1 . . . . . . . . . . . . . . . . . . . . . . . . Scanalyzers . | . . . . . . . . . . . . . . . . . . . . . . . . . . Garrison Access 3 | . . . . . 1 . . . . 1 . . . . 1 . . . . . . . . . . Total Hacks 105 | . 7 . 4 . 15 6 10 4 . 17 . . . . 1 3 3 . 1 17 . 15 . 1 1 Successful 56 | . 2 . 4 . 7 2 5 1 . 7 . . . . 1 . 1 . 1 17 . 6 . 1 1 Failed 49 | . 5 . . . 8 4 5 3 . 10 . . . . . 3 2 . . . . 9 . . . Catastrophic 10 | . 2 . . . . . 1 1 . 3 . . . . . 1 . . . . . 2 . . . Database Lockouts . | . . . . . . . . . . . . . . . . . . . . . . . . . . Manual 32 | . 5 . . . 10 . 6 . . 1 . . . . . . 3 . . . . 7 . . . Terminals 71 | . 5 . . . 14 6 10 3 . 14 . . . . . 3 3 . 1 . . 12 . . . Fabricators 5 | . . . . . . . . 1 . 1 . . . . . . . . . . . 3 . . . Repair Stations . | . . . . . . . . . . . . . . . . . . . . . . . . . . Recycling Units 2 | . 2 . . . . . . . . . . . . . . . . . . . . . . . . Scanalyzers . | . . . . . . . . . . . . . . . . . . . . . . . . . . Garrison Access 4 | . . . . . 1 . . . . 2 . . . . 1 . . . . . . . . . . Terminal Hacks 42 | . 1 . 4 . 1 2 3 1 . 6 . . . . . . 1 . 1 17 . 3 . 1 1 Record 11 | . . . 4 . . . . . . 1 . . . . . . . . 1 5 . . . . . Part Schematic 4 | . . . . . . . . . . . . . . . . . . . . 4 . . . . . Robot Analysis 4 | . . . . . . . . . . . . . . . . . . . . 4 . . . . . Prototype ID Bank 4 | . . . . . . . . . . . . . . . . . . . . 4 . . . . . Open Door 2 | . . . . . . . . . . . . . . . . . . . . . . . . 1 1 Open DSF 1 | . . . . . . . . 1 . . . . . . . . . . . . . . . . . Branch Access Points 3 | . . . . . . . . . . 1 . . . . . . 1 . . . . 1 . . . Emergency Access Points 2 | . . . . . . 1 . . . . . . . . . . . . . . . 1 . . . Machine Index 1 | . . . . . . . 1 . . . . . . . . . . . . . . . . . . Terminal Index 1 | . . . . . . . . . . 1 . . . . . . . . . . . . . . . Alert Level 1 | . . . . . . . . . . . . . . . . . . . . . . 1 . . . Locate Traps 1 | . . . . . . . . . . 1 . . . . . . . . . . . . . . . Disarm Traps 2 | . . . . . . . 2 . . . . . . . . . . . . . . . . . . Reprogram Traps 1 | . . . . . . . . . . 1 . . . . . . . . . . . . . . . Recall Extermination 1 | . . . . . . . . . . 1 . . . . . . . . . . . . . . . Zone Layout 2 | . 1 . . . 1 . . . . . . . . . . . . . . . . . . . . Security Stations 1 | . . . . . . 1 . . . . . . . . . . . . . . . . . . . Fabricator Hacks 3 | . . . . . . . . . . 1 . . . . . . . . . . . 2 . . . Network Status 1 | . . . . . . . . . . 1 . . . . . . . . . . . . . . . Load Schematic 1 | . . . . . . . . . . . . . . . . . . . . . . 1 . . . Build 1 | . . . . . . . . . . . . . . . . . . . . . . 1 . . . Repair Station Hacks . | . . . . . . . . . . . . . . . . . . . . . . . . . . Recycling Unit Hacks . | . . . . . . . . . . . . . . . . . . . . . . . . . . Scanalyzer . | . . . . . . . . . . . . . . . . . . . . . . . . . . Garrison Access Hacks 2 | . . . . . 1 . . . . . . . . . 1 . . . . . . . . . . Unlock Access 2 | . . . . . 1 . . . . . . . . . 1 . . . . . . . . . . Unauthorized Hacks 9 | . 1 . . . 5 . 2 . . . . . . . . . . . . . . 1 . . . Terminals 9 | . 1 . . . 5 . 2 . . . . . . . . . . . . . . 1 . . . Botnet 4 | . . . . . 2 . 1 . . . . . . . . . . . . . . 1 . . . Skim 5 | . 1 . . . 3 . 1 . . . . . . . . . . . . . . . . . . Fabricators . | . . . . . . . . . . . . . . . . . . . . . . . . . . Repair Stations . | . . . . . . . . . . . . . . . . . . . . . . . . . . Recycling Units . | . . . . . . . . . . . . . . . . . . . . . . . . . . Scanalyzers . | . . . . . . . . . . . . . . . . . . . . . . . . . . Garrison Access . | . . . . . . . . . . . . . . . . . . . . . . . . . . Data Cores Recovered 1 | . . . . . . . . . . 1 . . . . . . . . . . . . . . . Used . | . . . . . . . . . . . . . . . . . . . . . . . . . . Hacking Detections 25 | . 4 . . . 6 2 4 1 . 4 . . . . . 1 1 . . . . 2 . . . Full Trace Events . | . . . . . . . . . . . . . . . . . . . . . . . . . . Feedback Events . | . . . . . . . . . . . . . . . . . . . . . . . . . . Feedback Blocked . | . . . . . . . . . . . . . . . . . . . . . . . . . . Robot Schematics Acquired 2 | . . . . . . . . . . . . . 2 . . . . . . . . . . . . Robots Built . | . . . . . . . . . . . . . . . . . . . . . . . . . . Authchips . | . . . . . . . . . . . . . . . . . . . . . . . . . . Time . | . . . . . . . . . . . . . . . . . . . . . . . . . . Total Robot Build Rating . | . . . . . . . . . . . . . . . . . . . . . . . . . . Part Schematics Acquired 19 | . . . . . . . . . . . . . 15 . . . . . . 4 . . . . . Parts Built 1 | . . . . . . . . . . . . . . . . . . . . . . 1 . . . Authchips 1 | . . . . . . . . . . . . . . . . . . . . . . 1 . . . Time 84 | . . . . . . . . . . . . . . . . . . . . . . 84 . . . Total Part Build Rating 6 | . . . . . . . . . . . . . . . . . . . . . . 6 . . . Parts Repaired . | . . . . . . . . . . . . . . . . . . . . . . . . . . Time . | . . . . . . . . . . . . . . . . . . . . . . . . . . Parts Recycled . | . . . . . . . . . . . . . . . . . . . . . . . . . . Recycled Matter . | . . . . . . . . . . . . . . . . . . . . . . . . . . Retrieved Matter . | . . . . . . . . . . . . . . . . . . . . . . . . . . Retrieved Components . | . . . . . . . . . . . . . . . . . . . . . . . . . . Parts Scanalyzed . | . . . . . . . . . . . . . . . . . . . . . . . . . . Part Schematics Acquired . | . . . . . . . . . . . . . . . . . . . . . . . . . . Parts Damaged . | . . . . . . . . . . . . . . . . . . . . . . . . . . Bothacking | -11 -10 -10 -10 -9 -8 -8 -8 -7 -7 -6 -6 -6 -6 -5 -5 -5 -5 -5 -5 -5 -4 -4 -4 -4 -4 ------------ Run | Yrd Mat Min Exi Min Mat Gar Mat Fac DSF Fac Low Low Zio Pro Fac Gar Fac Upp Upp Zhi Pro Fac Upp Upp War Used RIF Installer . | . . . . . . . . . . . . . . . . . . . . . . . . . . Robots Hacked 1 | . . . . . . . . . . . . . . . . . . . . . . 1 . . . Non-combat 1 | . . . . . . . . . . . . . . . . . . . . . . 1 . . . Combat . | . . . . . . . . . . . . . . . . . . . . . . . . . . Robot Hacks Applied 1 | . . . . . . . . . . . . . . . . . . . . . . 1 . . . find_chute 1 | . . . . . . . . . . . . . . . . . . . . . . 1 . . . Relay Couplers Released 32 | . . . . . . 18 . . . . . . . . . 14 . . . . . . . . . Machine Destruction 32 | . . . . . . 18 . . . . . . . . . 14 . . . . . . . . . Fabnet Peak Effective % . | . . . . . . . . . . . . . . . . . . . . . . . . . . Robots Rewired 12 | . . . . . . 2 . . . . . . . . . 5 . 3 . . . . . 2 . Allies Hacked . | . . . . . . . . . . . . . . . . . . . . . . . . . . Hacks Repelled . | . . . . . . . . . . . . . . . . . . . . . . . . . . Allies | -11 -10 -10 -10 -9 -8 -8 -8 -7 -7 -6 -6 -6 -6 -5 -5 -5 -5 -5 -5 -5 -4 -4 -4 -4 -4 -------- Run | Yrd Mat Min Exi Min Mat Gar Mat Fac DSF Fac Low Low Zio Pro Fac Gar Fac Upp Upp Zhi Pro Fac Upp Upp War Total Allies 15 | . . . . . . 2 . . . . . . 3 . . 5 . 3 . . . . . 2 . Largest Group 4 | . . . . . . 2 1 . . . . . 3 3 . 4 4 3 3 . . . . 2 2 Highest-Rated Group 253 | . . . . . . 51 31 . . . . . 48 48 . 253 253 87 87 . . . . 77 77 Highest-Rated Ally 148 | . . . . . . 31 31 . . . . . 20 20 . 148 148 29 29 . . . . 47 47 Initial Warlord ECA Mod 327 | . . . . . . . 10 9 9 18 18 18 18 17 17 16 22 20 20 20 19 19 19 19 19 Warlord Squad Rendezvous 3 | . . . . . . . . . . . . . . . 1 . 2 . . . . . . . . Dakka 2 | . . . . . . . . . . . . . . . 1 . 1 . . . . . . . . Pyro 1 | . . . . . . . . . . . . . . . . . 1 . . . . . . . . Total Orders . | . . . . . . . . . . . . . . . . . . . . . . . . . . Ally Attacks 121 | . . . . . . 24 4 . . . . . . 11 . 25 20 19 18 . . . . . . Total Damage 2846 | . . . . . . 649 42 . . . . . . 188 . 885 584 245 253 . . . . . . Kills 20 | . . . . . . 1 . . . . . . . . . 9 4 5 1 . . . . . . Allies Corrupted 1 | . . . . . . . . . . . . . . . . . 1 . . . . . . . . Allies Melted 3 | . . . . . . . . . . . . . . . . . . . . . . . . 1 2 Intel | -11 -10 -10 -10 -9 -8 -8 -8 -7 -7 -6 -6 -6 -6 -5 -5 -5 -5 -5 -5 -5 -4 -4 -4 -4 -4 ------- Run | Yrd Mat Min Exi Min Mat Gar Mat Fac DSF Fac Low Low Zio Pro Fac Gar Fac Upp Upp Zhi Pro Fac Upp Upp War Active Infowar (turns) 12316 | . . . . . . . . . . . 424 486 1535 542 163 1885 1047 889 1007 282 626 915 509 509 1497 Optics 545 | . . . . . . . . . . . . . . . . . . . . . . . . . 545 Sensors 6098 | . . . . . . . . . . . 424 486 1535 542 163 . 524 889 959 282 294 . . . . Decoding 6902 | . . . . . . . . . . . . . . . . . 668 889 1007 282 626 915 509 509 1497 Cloaking 1155 | . . . . . . . . . . . . . . . . . . . 814 282 59 . . . . Jamming 2943 | . . . . . . . . . . . . . . . . 1885 1047 11 . . . . . . . Robot Analysis Total 4 | . . . . . . . . . . . . . . . . . . . . 4 . . . . . Derelict Logs Recovered 14 | . . 1 . 1 . . . . . . 1 1 2 1 . . . 2 1 . 2 . 1 1 . Drone Launches . | . . . . . . . . . . . . . . . . . . . . . . . . . . Drone Recoveries . | . . . . . . . . . . . . . . . . . . . . . . . . . . Decoded 0b10 Intel 75 | . . . . . . . . . . . . . . . . . 38 . . . . 37 . . . Items 75 | . . . . . . . . . . . . . . . . . 38 . . . . 37 . . . Exploration | -11 -10 -10 -10 -9 -8 -8 -8 -7 -7 -6 -6 -6 -6 -5 -5 -5 -5 -5 -5 -5 -4 -4 -4 -4 -4 ------------- Run | Yrd Mat Min Exi Min Mat Gar Mat Fac DSF Fac Low Low Zio Pro Fac Gar Fac Upp Upp Zhi Pro Fac Upp Upp War Turns Passed 21166 | 152 488 875 364 236 1325 2642 657 126 498 1091 466 486 1535 542 319 2083 1047 889 1007 282 626 915 509 509 1497 Spaces Moved 11141 | 105 396 425 329 139 620 1153 322 79 196 693 237 290 920 318 141 946 547 491 530 159 277 485 284 295 764 Core 18 | 16 . . . . . . . . 2 . . . . . . . . . . . . . . . . Treads 9706 | . . 396 . 139 620 1153 322 79 27 286 237 290 920 318 141 946 547 491 530 159 277 485 284 295 764 Legs . | . . . . . . . . . . . . . . . . . . . . . . . . . . Wheels 1417 | 89 396 29 329 . . . . . 167 407 . . . . . . . . . . . . . . . Hover . | . . . . . . . . . . . . . . . . . . . . . . . . . . Flight . | . . . . . . . . . . . . . . . . . . . . . . . . . . Fastest Speed 50 | 50 90 95 95 160 160 160 161 161 115 115 165 165 165 165 165 162 160 170 170 166 160 152 156 156 156 Average Speed 159 | 83 96 168 109 160 160 187 169 161 151 135 165 165 165 165 165 162 166 170 170 168 162 155 156 156 157 Slowest Speed 1300 | 90 110 240 110 160 240 400 241 161 1300 165 165 165 165 165 165 165 250 170 170 250 166 160 156 156 237 Overloaded Moves . | . . . . . . . . . . . . . . . . . . . . . . . . . . Propulsion Burnouts . | . . . . . . . . . . . . . . . . . . . . . . . . . . Robots Hopped . | . . . . . . . . . . . . . . . . . . . . . . . . . . Potential Cave-ins . | . . . . . . . . . . . . . . . . . . . . . . . . . . Cave-ins Triggered . | . . . . . . . . . . . . . . . . . . . . . . . . . . Exploration Rate (%) 49 | 7 64 68 70 38 45 96 28 4 88 22 40 44 84 52 4 76 18 62 77 60 44 15 53 49 81 Regions Visited 25 Branch Regions 14 Pre-discovered Areas 12 | . . 2 . 1 . . . . . . 1 1 3 . . . . . . 3 . . . 1 . Known Exits Taken 14 | . . . . . 1 . . 1 . 1 1 1 1 1 1 . 1 1 1 1 1 1 . . . Unknown Exits Taken 8 | 1 1 1 1 1 . . 1 . . . . . . . . . . . . . . . 1 1 . Scrap Searched 25 | . . . . 2 . . . . . . 2 6 3 4 . . . 2 4 . . . 1 1 . Spaces Dug 18 | . . . . . . . . . . 4 . . . . . . 1 . . . . 13 . . . Terrain Destroyed 364 | . . . . . 6 97 6 . . 46 . . . . . . 5 . . . 25 56 18 32 73 Melee . | . . . . . . . . . . . . . . . . . . . . . . . . . . Projectile 96 | . . . . . . 1 6 . . 5 . . . . . . 1 . . . 25 30 18 3 7 AOE 268 | . . . . . 6 96 . . . 41 . . . . . . 4 . . . . 26 . 29 66 Terrain Rammed . | . . . . . . . . . . . . . . . . . . . . . . . . . . Walls Destroyed . | . . . . . . . . . . . . . . . . . . . . . . . . . . Machines Disabled . | . . . . . . . . . . . . . . . . . . . . . . . . . . Actions | -11 -10 -10 -10 -9 -8 -8 -8 -7 -7 -6 -6 -6 -6 -5 -5 -5 -5 -5 -5 -5 -4 -4 -4 -4 -4 --------- Run | Yrd Mat Min Exi Min Mat Gar Mat Fac DSF Fac Low Low Zio Pro Fac Gar Fac Upp Upp Zhi Pro Fac Upp Upp War Total 13327 | 138 459 519 332 155 839 1422 405 78 323 791 275 295 935 328 171 1343 648 520 575 174 367 592 315 327 1001 Wait 681 | . 6 35 . . 66 31 35 . 24 10 17 . 7 4 . 247 13 5 7 . 35 17 12 . 110 Move 11118 | 104 395 424 328 138 620 1152 321 78 195 692 236 289 919 317 141 945 546 490 529 158 276 484 283 294 764 Hop . | . . . . . . . . . . . . . . . . . . . . . . . . . . Pick Up 259 | 11 20 5 3 4 37 39 10 . 21 20 2 2 3 . 3 9 15 . 3 6 . 21 1 4 20 Fast Attach 35 | . 2 . . 1 3 4 . . 4 5 . . . . . 1 3 . . 2 . 2 . 2 6 Attach 115 | 6 2 4 . . 9 14 . . 16 9 1 . 1 . 2 4 9 . 3 3 5 18 . . 9 Detach 9 | . . . . . 1 1 . . 1 2 . . . . . . . . . . . 3 . . 1 Swap 138 | . 1 4 1 4 10 26 7 . 3 9 4 1 2 2 5 22 19 1 1 . . . . 5 11 Drop 243 | . 7 6 . 8 30 37 14 . 22 20 2 2 2 2 1 12 23 . 2 5 3 2 1 6 36 Fire 646 | 17 26 41 . . 63 103 18 . 37 24 13 1 . 3 19 61 20 11 30 . 45 43 18 9 44 Melee 1 | . . . . . . . . . . . . . 1 . . . . . . . . . . . . Ram . | . . . . . . . . . . . . . . . . . . . . . . . . . . Kick . | . . . . . . . . . . . . . . . . . . . . . . . . . . Crush 5 | . . . . . . . . . . . . . . . . . . . . . 3 2 . . . Escape Stasis 2 | . . . . . . 2 . . . . . . . . . . . . . . . . . . . Rewire 67 | . . . . . . 13 . . . . . . . . . 34 . 13 . . . . . 7 . Trap . | . . . . . . . . . . . . . . . . . . . . . . . . . . Miscellaneous 8 | . . . . . . . . . . . . . . . . 8 . . . . . . . . . Route ------- -11/Scrapyard -10/Materials (discovered 3 exits: [*Mat x2] / [*Min]) -10/Mines (discovered 3 exits: [*Mat] / *Exi / [*Sub]) -10/Exiles -9/Mines -8/Materials (discovered 3 exits: *Fac / [*Sto] / Gar) -8/Garrison (discovered 3 exits: *Mat x3) -8/Materials -7/Factory -7/DSF -6/Factory (discovered 2 exits: *Low x2) -6/Lower Caves -6/Lower Caves -6/Zion -5/Proximity Caves -5/Factory (discovered 2 exits: Fac / Gar) -5/Garrison (discovered 3 exits: *Fac x3) -5/Factory (discovered 2 exits: *Upp x2) -5/Upper Caves -5/Upper Caves (discovered 2 exits: *Fac / *Zhi) -5/Zhirov -4/Proximity Caves -4/Factory (discovered 4 exits: *Upp x2 / Ext x2) -4/Upper Caves -4/Upper Caves (discovered 2 exits: [*Res] / *War) -4/Warlord History --------- Turn | Location | Event 10 | -11/Scrapyard | Discovered new exit (range 15) 153 | -11/Scrapyard | Entered Materials 269 | -10/Materials | Discovered new exit (range 9) 306 | -10/Materials | Build established: Mutant 418 | -10/Materials | Discovered new exit (range 16) 507 | -10/Materials | Discovered new exit (range 15) 641 | -10/Materials | Entered Mines 805 | -10/Mines | Core integrity fell below 50% 835 | -10/Mines | Discovered new exit (range 5) 999 | -10/Mines | Found a hidden stash of uninstalled traps 1090 | -10/Mines | Discovered new exit (range 6) 1115 | -10/Mines | Learned location of Storage (-8) 1188 | -10/Mines | Learned location of Zion (-6) 1512 | -10/Mines | Deemed a non-threat by the Exiles lab entrance 1512 | -10/Mines | Discovered new exit (range 5) 1516 | -10/Mines | Entered Exiles 1516 | -10/Exiles | Found Exiles lab abandoned 1868 | -10/Exiles | Discovered new exit (range 14) 1880 | -10/Exiles | Entered Mines 1907 | -9/Mines | Found DCF Scrap (14 items) 1980 | -9/Mines | Discovered new exit (range 14) 2116 | -9/Mines | Entered Materials 2116 | -8/Materials | Evolved 4 slots: Propulsion x1, Utility x2, Weapon x1 2593 | -8/Materials | Discovered new exit (range 16) 2654 | -8/Materials | Build established: Gunner 2687 | -8/Materials | Discovered new exit (range 7) 3274 | -8/Materials | Garrison activated, responded to threat 3439 | -8/Materials | Identified exit to Garrison 3441 | -8/Materials | Entered Garrison 3571 | -8/Garrison | Triggered checkpoint 3607 | -8/Garrison | Garrison Relay disabled 3741 | -8/Garrison | Phase Generator disabled 3766 | -8/Garrison | Learned Materials security intel 3883 | -8/Garrison | Triggered checkpoint 4071 | -8/Garrison | Garrison Relay disabled 4108 | -8/Garrison | Discovered new exit (range 13) 4331 | -8/Garrison | Triggered checkpoint 4347 | -8/Garrison | Triggered checkpoint 4377 | -8/Garrison | Triggered checkpoint 4446 | -8/Garrison | Build established: Scavenger-Tank 4515 | -8/Garrison | Discovered new exit (range 10) 4614 | -8/Garrison | Garrison Relay disabled 4669 | -8/Garrison | Triggered checkpoint 4745 | -8/Garrison | Spotted B-75 Beast 4745 | -8/Garrison | Spotted B-75 Beast 4935 | -8/Garrison | Garrison Relay disabled 4937 | -8/Garrison | Triggered checkpoint 5125 | -8/Garrison | Build established: Scavenger-Gunner 5307 | -8/Garrison | Discovered new exit (range 10) 5381 | -8/Garrison | Triggered checkpoint 5406 | -8/Garrison | Garrison Relay disabled 5697 | -8/Garrison | Destroyed B-75 Beast 5822 | -8/Garrison | Destroyed B-75 Beast 6083 | -8/Garrison | Entered Materials 6083 | -8/Materials | Accompanied by 1 ally 6240 | -8/Materials | Core integrity fell below 50% 6504 | -8/Materials | Build established: Gunner 6674 | -8/Materials | Discovered new exit (range 16) 6740 | -8/Materials | Entered Factory 6740 | -7/Factory | Evolved 2 slots: Propulsion x1, Utility x1 6864 | -7/Factory | Identified exit to DSF 6866 | -7/Factory | Entered DSF 6905 | -7/DSF | Additional patrols routed to DSF 6985 | -7/DSF | Lost 6 parts (1p2n3u) 7218 | -7/DSF | Discovered new exit (range 14) 7223 | -7/DSF | Build established: Tank 7237 | -7/DSF | Sterilization system engaged 7257 | -7/DSF | Ambient heat levels rising (+10) 7272 | -7/DSF | Ambient heat levels rising (+10) 7287 | -7/DSF | Ambient heat levels rising (+10) 7302 | -7/DSF | Ambient heat levels rising (+10) 7317 | -7/DSF | Ambient heat levels rising (+10) 7332 | -7/DSF | Ambient heat levels rising (+10) 7347 | -7/DSF | Ambient heat levels rising (+10) 7362 | -7/DSF | Ambient heat levels rising (+10) 7364 | -7/DSF | Entered Factory 7364 | -6/Factory | Evolved 2 slots: Utility x2 8166 | -6/Factory | Identified exit to Lower Caves 8387 | -6/Factory | Cargo convoy interrupted 8455 | -6/Factory | Entered Lower Caves 8496 | -6/Lower Caves | Met a Warlord Commander 8497 | -6/Lower Caves | Learned location of Warlord (-4) 8498 | -6/Lower Caves | Warlord Commander delivered Encrypted Comm Array 8500 | -6/Lower Caves | Found Encrypted Comm Array 8605 | -6/Lower Caves | Identified exit to Lower Caves 8921 | -6/Lower Caves | Entered another Lower Caves area 8982 | -6/Lower Caves | Encountered a Warlord checkpoint 8991 | -6/Lower Caves | Learned location of Extension (-4) 9214 | -6/Lower Caves | Build established: Skirmisher 9395 | -6/Lower Caves | Discovered new exit (range 5) 9398 | -6/Lower Caves | Attracted the attention of an 0b10 checkpoint 9405 | -6/Lower Caves | Identified exit to Zion 9407 | -6/Lower Caves | Entered Zion 9472 | -6/Zion | Discovered new exit (range 15) 9536 | -6/Zion | Found CR-A16's Pointy Stick 9898 | -6/Zion | Learned location of 1 exit from Factory 10236 | -6/Zion | Learned Factory emergency access door positions 10438 | -6/Zion | Gained Derelict followers 10933 | -6/Zion | Identified exit to Proximity Caves 10942 | -6/Zion | Entered Proximity Caves 10942 | -5/Proximity Caves | Accompanied by 3 allies 11101 | -5/Proximity Caves | Lost 3 allies 11183 | -5/Proximity Caves | Attracted the attention of an 0b10 checkpoint 11184 | -5/Proximity Caves | Learned Factory emergency access door positions 11265 | -5/Proximity Caves | Discovered new exit (range 7) 11275 | -5/Proximity Caves | Identified exit to Factory 11484 | -5/Proximity Caves | Entered Factory 11484 | -5/Factory | Evolved 2 slots: Power x1, Utility x1 11485 | -5/Factory | Identified exit to Factory 11639 | -5/Factory | Garrison activated, responded to threat 11775 | -5/Factory | Joined by Warlord Dakka squad 11803 | -5/Factory | Identified exit to Garrison 11803 | -5/Factory | Entered Garrison 11803 | -5/Garrison | Spotted B-75 Beast 11897 | -5/Garrison | Triggered checkpoint 11922 | -5/Garrison | Garrison Relay disabled 11945 | -5/Garrison | Build established: Tank 11991 | -5/Garrison | Destroyed B-75 Beast 12089 | -5/Garrison | Spotted B-75 Beast 12099 | -5/Garrison | Destroyed B-75 Beast 12122 | -5/Garrison | Rewired B-75 Beast 12176 | -5/Garrison | Rewired B-90 Cyclops 12323 | -5/Garrison | Triggered checkpoint 12323 | -5/Garrison | Spotted B-75 Beast 12387 | -5/Garrison | Triggered checkpoint 12461 | -5/Garrison | Triggered checkpoint 12605 | -5/Garrison | Triggered checkpoint 12630 | -5/Garrison | Garrison Relay disabled 12660 | -5/Garrison | Discovered new exit (range 10) 12834 | -5/Garrison | Discovered new exit (range 14) 12835 | -5/Garrison | Build established: Scavenger-Tank 13011 | -5/Garrison | Triggered checkpoint 13047 | -5/Garrison | Garrison Relay disabled 13174 | -5/Garrison | Identified exit to Factory 13247 | -5/Garrison | Triggered checkpoint 13312 | -5/Garrison | Discovered exit to Factory (range 15) 13373 | -5/Garrison | Triggered checkpoint 13391 | -5/Garrison | Garrison Relay disabled 13886 | -5/Garrison | Entered Factory 13886 | -5/Factory | Accompanied by 4 allies 14329 | -5/Factory | Lost 3 allies 14409 | -5/Factory | Joined by Warlord Pyro squad 14541 | -5/Factory | Joined by Warlord Dakka squad 14598 | -5/Factory | Lost 6 allies 14643 | -5/Factory | Build established: Tank 14690 | -5/Factory | Identified exit to Upper Caves 14933 | -5/Factory | Entered Upper Caves 15134 | -5/Upper Caves | Identified exit to Upper Caves 15257 | -5/Upper Caves | Attacked by a delusional Derelict stockpiling Unaware 15320 | -5/Upper Caves | Learned Factory interactive machine intel 15822 | -5/Upper Caves | Entered another Upper Caves area 15822 | -5/Upper Caves | Accompanied by 3 allies 15875 | -5/Upper Caves | Discovered exit to Factory (range 9) 16053 | -5/Upper Caves | Attacked by a faux Warlord 16133 | -5/Upper Caves | Attracted the attention of an 0b10 checkpoint 16444 | -5/Upper Caves | Learned location of 1 exit from Proximity Caves 16791 | -5/Upper Caves | Discovered new exit (range 9) 16803 | -5/Upper Caves | Identified exit to Zhirov 16829 | -5/Upper Caves | Entered Zhirov 16829 | -5/Zhirov | Discovered new exit (range 3) 16860 | -5/Zhirov | Met Zhirov 16891 | -5/Zhirov | Learned location of Quarantine (-2) 16891 | -5/Zhirov | Learned location of Testing (-3) 16891 | -5/Zhirov | Learned location of Command (-1) 16908 | -5/Zhirov | Zhirov requested help retrieving the SGEMP Prototype 16934 | -5/Zhirov | Found Alien Artifact 16935 | -5/Zhirov | Identified Integrated Reactor 16935 | -5/Zhirov | Installed Integrated Reactor, increased core energy generation (+10) 16958 | -5/Zhirov | Found Alien Artifact 17109 | -5/Zhirov | Identified exit to Proximity Caves 17111 | -5/Zhirov | Entered Proximity Caves 17113 | -4/Proximity Caves | Spotter reported a threat 17114 | -4/Proximity Caves | Spotter reported a threat 17245 | -4/Proximity Caves | Learned Research stockpile data 17318 | -4/Proximity Caves | Learned location of 1 exit from Research 17331 | -4/Proximity Caves | Spotter reported a threat 17520 | -4/Proximity Caves | Attracted the attention of an 0b10 checkpoint 17584 | -4/Proximity Caves | Lost 3 parts (2p1u) 17717 | -4/Proximity Caves | Attracted the attention of an 0b10 outpost 17737 | -4/Proximity Caves | Entered Factory 17737 | -4/Factory | Evolved 2 slots: Propulsion x1, Weapon x1 17738 | -4/Factory | Loaded intel: 56 interactive machine locations 17785 | -4/Factory | Identified exit to Upper Caves 17785 | -4/Factory | Identified exit to Extension 17987 | -4/Factory | Search patrols dispatched 18014 | -4/Factory | Fabricated Tiamat Missile Launcher? 18063 | -4/Factory | Lost 4 parts (1n2u1w) 18332 | -4/Factory | Build established: Mutant 18652 | -4/Factory | Entered Upper Caves 18771 | -4/Upper Caves | Build established: Tank 19144 | -4/Upper Caves | Discovered new exit (range 11) 19161 | -4/Upper Caves | Entered another Upper Caves area 19168 | -4/Upper Caves | Discovered new exit (range 15) 19401 | -4/Upper Caves | Encountered a Warlord checkpoint 19556 | -4/Upper Caves | Attracted the attention of an 0b10 outpost 19588 | -4/Upper Caves | Destroyed 7 combat bots 19638 | -4/Upper Caves | Discovered new exit (range 7) 19670 | -4/Upper Caves | Entered Warlord 19670 | -4/Warlord | Accompanied by 2 allies 19724 | -4/Warlord | System corruption cleaned by Quarantine Array 20143 | -4/Warlord | Met Warlord 20168 | -4/Warlord | Warlord's base attacked by MAIN.C 20305 | -4/Warlord | Found Prototype Reactor 20319 | -4/Warlord | Found Prototype Device 20320 | -4/Warlord | Identified System Purifier 20323 | -4/Warlord | Found Prototype Processor 20327 | -4/Warlord | Found Prototype Hackware 20334 | -4/Warlord | Found Prototype Processor 20518 | -4/Warlord | Warlord forces counterattacked 20581 | -4/Warlord | Met EX-DEC 20599 | -4/Warlord | Found Prototype Energy Cannon 20605 | -4/Warlord | Identified Exp. Targeting Computer 20608 | -4/Warlord | Found Prototype Energy Gun 20610 | -4/Warlord | Found Prototype Energy Gun 20616 | -4/Warlord | Found Prototype Energy Gun 20617 | -4/Warlord | Identified Vortex Rifle (x3) 20622 | -4/Warlord | Identified Spectral Analyzer 20624 | -4/Warlord | Found Vortex Rifle 20843 | -4/Warlord | Warlord base infiltrated, sounded retreat 20844 | -4/Warlord | Enhanced Grunt warped into view 20844 | -4/Warlord | Enhanced Grunt warped into view 20844 | -4/Warlord | Enhanced Grunt warped into view 20844 | -4/Warlord | Enhanced Demolisher warped into view 20844 | -4/Warlord | Enhanced Demolisher warped into view 20844 | -4/Warlord | Enhanced Demolisher warped into view 20948 | -4/Warlord | Spotted Executioner 20948 | -4/Warlord | Spotted Executioner 20967 | -4/Warlord | Spotted B-86 Titan 20969 | -4/Warlord | Spotted B-90 Cyclops 20972 | -4/Warlord | Spotted B-90 Cyclops 20972 | -4/Warlord | Spotted Striker 20979 | -4/Warlord | Spotted Executioner 20991 | -4/Warlord | Destroyed B-90 Cyclops 21006 | -4/Warlord | Destroyed B-90 Cyclops 21008 | -4/Warlord | Spotted B-86 Titan 21021 | -4/Warlord | Destroyed B-86 Titan 21032 | -4/Warlord | Found Meganuke 21032 | -4/Warlord | Spotted Striker 21082 | -4/Warlord | Destroyed 14 combat bots 21098 | -4/Warlord | Spotted Executioner 21119 | -4/Warlord | Lost 20 allies 21121 | -4/Warlord | Spotted Striker 21154 | -4/Warlord | Identified Vortex Chain Reactor 21160 | -4/Warlord | Core integrity fell below 50% 21161 | -4/Warlord | System corruption reached 10% 21161 | -4/Warlord | Destroyed Warlord 21167 | -4/Warlord | Triggered Meganuke 21167 | -4/Warlord | Destroyed by Meganuke Last Messages --------------- 21158_ ANNOUNCEMENT: MAIN.C reinforcements approaching through caves, arriving soon. 21158_ Penetrated by Slug. 21159_ P-70 Sage resets P-70 Sage, system corruption cleaned. 21161_ The unstable cave ceiling collapses. 21161_ Warlord: "IMPOSS00101101 01101001 01010111 01001001 01001100 01001100 01110010 01100101 01110100 01110101 01110010 01101110" 21161_ Warlord destroyed. 21164_ Penetrated by Slug. 21164_ Adv. Medium Treads destroyed. 21166_ Matter Neutralizer destroyed. 21166_ Dropped Meganuke. 21167_ The unstable cave ceiling collapses. 21167_ Vortex Rifle destroyed. 21167_ Triggered Meganuke. 21167_ Arm. Heavy Treads destroyed. 21167_ Adv. Remote Force Field destroyed. 21167_ Hcp. Storage Unit destroyed. 21167_ Energy Well destroyed. 21167_ Vortex Chain Reactor destroyed. Map ----- +----------------------------------------------------+ | ?????????????????????????????????????????????????? | | ?????????????????????????????????????????????????? | | ?????????????????????????????????????????????????? | | ##########???????????????????????????????????????? | | "" + #?????????????""????????????????????????? | | " + #?????????????""????????????????????????? | | ## #??????? ???? ????????????????????????? | | !## #??????? *???? ????????????????????????? | | ## #????????=%?###+###?????????????????????? | | ## #?????????]## #?????????????????????? | | "## #?????????? #?????????????????????? | | ] "## #?????????? pp #?????????????????????? | | "## #???????????% #?????###?????????????? | | """"## #?#########?? p ??????""#?????????????? | | """"## #?# #??# #?#####""#?????????????? | | """"## #?# #??# ## ""#?????????????? | | !"""## ### """" #??# # ""#?????????????? | | ###### X## """" #??# ## ""######???#????? | | #### # ### """" #### ## "" # ## #### | | # # #?# """" # # "" =[ # = # | | % = #??? !![ "" / | | #??#####=%=/% # "" [ [ = | | [% % *%=### *!%=!]! =%= ! = ! | | % # [ ! ]* #!=!=%=**!! %%g%! * % | | [% ! %*=!##!!!!!%!![%=*! % % x= % i | | % # /!= !%==*%!=!!===!@! E % = | | % *% #g[%[%%==[/*%%|==!=K] %/ g ] [=* | | [ # g ]%% !%!%=!!![[%= "" | | %%* !%=!!*]!%=/!!#=! ""= # | | = =%=%!!%=====[![*## "" # # | | ==!=!!%!*=!/[*= * # ""# # ######? | | !! %!!!=! ]= =% #### ""###?#####?????? | | ;; [[=*% " ! # ???# ""#?????????????? | | ##"## ^""" = """ # ????#""#?????????????? | | "" """ ###????""#?????????????? | | #??????###?????????????? | | #??????????????????????? | | """ #??????????????????????? | | #####;###### """ #########??????????????? | | + #?# """ ## #??????????????? | | # #?# ## #??????????????? | | + #?# ## #??????????????? | | #### ### """ ## !! #?????????????? | | ## !! + """ ## ! #?????????????? | | ## / ! ### """ # ! / #?????????????## | | ## // #?# # ! #??????????????# | | ## #?# + #??????????????? | | ## #?# """ # #??????????????? | | #####+#####?# """ # #??????????????? | | #???? #?????# """ # #??????????????? | +----------------------------------------------------+ Best States ------------- Heat Dissipation 102 Coolant Potential 100 Energy Generation 65 Energy Capacity 1050 Matter Stores 300 Matter Capacity 300 Sight Range 24 Robot Scan Range 16 Terrain Scan Density 10 Jamming Range 14 Cloak Strength 2 Power Amplification 30 Armor Coverage 750 Resistance: KI 20 Resistance: TH 30 Resistance: EM 15 Core Shielding 30 Propulsion Shielding 66 Weapon Shielding 33 Evasion (%) 50 Targeting Accuracy 12 Core Analysis 6 Armor Integrity Analysis 30 Recoil Reduction 5 Particle Charging 15 Offensive Hacking 22 Defensive Hacking 14 Authchip Count 2 Item Schematics ----------------- Disruptor Cannon | -6/Zion | Archive Stasis Canceller | -6/Zion | Archive Nuclear Pulse Thruster | -6/Zion | Archive Imp. Remote Shield | -6/Zion | Archive EM Shield | -6/Zion | Archive Imp. Thermal Shield | -6/Zion | Archive Focal Shield | -6/Zion | Archive Enh. Gauss Cannon | -6/Zion | Archive Adv. Sensor Array | -6/Zion | Archive Imp. Component Analysis Suite | -6/Zion | Archive Fission Core | -6/Zion | Archive Imp. Weapon Cycler | -6/Zion | Archive Imp. Particle Charger | -6/Zion | Archive Imp. Point Defense System | -6/Zion | Archive Tiamat Missile Launcher | -6/Zion | Archive Assault Drone Bay | -5/Zhirov | Free Exp. Heat Sink | -5/Zhirov | Free Exp. Optical Array | -5/Zhirov | Free Imp. Arc Thrower | -5/Zhirov | Free Robot Schematics ------------------ A-15 Conveyor | -6/Zion | Archive K-01 Serf | -6/Zion | Archive Fabricated ------------ Tiamat Missile Launcher | x1 | -4/Factory | Authchip Repaired ---------- Nothing Alien Tech Used ----------------- Integrated Reactor Achievements -------------- None Challenges ------------ None Game ------ Seed DeliveryRecoilBay Manual? 0 Play Time 02:27:12 Cumulative 352.9 hours Start 2025.10.04 @ 10:58:54 End 2025.10.04 @ 13:58:05 Sessions 7 Manual Loads 0 Difficulty Rogue Special Mode None Game No. 459 Rogue 459 Adventurer 0 Explorer 0 Win Type - Total 11 Types 6/0/1/2/1/0/1/0/0/0 Lore% 87 Gallery% 83 Achievement% 70 Wizard Run 0 Options --------- Layout 0 ASCII 0 Keyboard 0 Movement Mouse Keybinds 0 Fullscreen 1 Font 18/X11 Map View 76x50 Zoom Use 0% Tactical HUD 1 Map Filters NONE Filters NONE Steam 1 RUN: cf3d1772-e926-4c95-873a-80bda6f693fc